bitfinex/quotes_BTCUSD_20250414
["timestamp","ask_amount","ask_price","bid_price","bid_amount"]
[1744641568766,0.0048153,85429.0,85410.0,0.011708]
[1744641568974,0.0048153,85429.0,85428.0,0.234115]
[1744641569352,0.0004644,85440.0,85427.0,0.011705]
[1744641569539,0.0004644,85440.0,85437.0,0.234089]
[1744641569735,0.00488905,85439.0,85437.0,0.234089]
[1744641569963,0.0004644,85440.0,85437.0,0.234089]
[1744641570223,0.0004644,85440.0,85439.0,0.234085]
[1744641570775,9e-07,85444.0,85443.0,0.234074]
[1744641570979,0.00515727,85444.0,85443.0,0.234074]
[1744641571896,0.00815727,85444.0,85443.0,0.234074]
[1744641572107,0.00314011,85444.0,85420.0,0.011706]
[1744641572296,0.27682873,85430.0,85421.0,0.18254754]
[1744641572523,0.27682873,85430.0,85422.0,0.234131]
[1744641572736,0.00499684,85429.0,85428.0,0.234114]
[1744641572896,0.27682873,85430.0,85428.0,0.234114]
[1744641573816,0.34,85439.0,85430.0,0.234108]
[1744641574038,0.00502888,85438.0,85423.0,0.234128]
[1744641574357,0.00502888,85438.0,85434.0,0.234098]
[1744641574738,0.00502888,85438.0,85435.0,0.234094]
[1744641575151,0.00502888,85438.0,85435.0,0.245798]
[1744641575354,0.00014011,85444.0,85443.0,0.234074]
[1744641575717,0.00518414,85444.0,85441.0,0.24578]
[1744641575916,0.00014011,85444.0,85441.0,0.24578]
[1744641576337,0.00014011,85444.0,85441.0,0.234078]
[1744641576749,0.00014011,85444.0,85441.0,0.245781]
[1744641576945,0.00014011,85444.0,85439.0,0.234077]
[1744641577150,0.234077,85442.0,85430.0,0.234107]
[1744641577356,0.27682873,85440.0,85428.0,0.011705]
[1744641577560,0.27682873,85440.0,85439.0,0.234085]
[1744641577757,0.00014011,85444.0,85443.0,0.234074]
[1744641578166,0.00214011,85444.0,85443.0,0.234074]
[1744641578812,0.00014011,85444.0,85443.0,0.234074]
[1744641579596,0.00014011,85444.0,85420.0,0.05]
[1744641579806,0.27682873,85440.0,85426.0,0.061706]
[1744641580014,0.27682873,85436.0,85430.0,0.234107]
[1744641580370,0.27682873,85436.0,85433.0,0.234099]
[1744641580606,0.351703,85442.0,85431.0,0.234105]
[1744641580803,0.34,85442.0,85436.0,0.23409]
[1744641581003,0.26721298,85449.0,85441.0,0.011703]
[1744641581203,0.27682873,85446.0,85440.0,0.234082]
[1744641581447,0.27682873,85446.0,85438.0,0.234087]
[1744641581730,0.15776,85466.0,85457.0,0.234033]
[1744641581903,0.27682873,85460.0,85455.0,0.234039]
[1744641582222,0.234023,85462.0,85447.0,0.011703]
[1744641582400,0.234023,85462.0,85450.0,0.234053]
[1744641582401,0.013701,85459.0,85450.0,0.234053]
[1744641582605,0.002,85459.0,85451.0,0.23405]
[1744641582788,0.002,85459.0,85458.0,0.234033]
[1744641583709,0.002,85459.0,85458.0,0.35487454]
[1744641584471,1e-06,85463.0,85462.0,0.284022]
[1744641584719,0.41017782,85500.0,85462.0,0.284022]
[1744641584720,0.00774799,85492.0,85474.0,0.05]
[1744641584920,0.41017782,85500.0,85488.0,0.28395]
[1744641584921,6e-07,85489.0,85488.0,0.28395]
[1744641585096,0.41017782,85500.0,85499.0,0.28392]
[1744641585310,8.6e-07,85500.0,85499.0,0.56252154]
[1744641585663,0.00771581,85529.0,85517.0,0.233871]
[1744641585776,0.00771581,85529.0,85520.0,0.011693]
[1744641585976,0.00817782,85529.0,85510.0,0.011694]
[1744641586211,0.00817782,85529.0,85528.0,0.05]
[1744641586410,0.00817782,85529.0,85528.0,0.17317994]
[1744641586627,0.00817782,85529.0,85527.0,0.233842]
[1744641587035,0.245556,85521.0,85510.0,0.05]
[1744641587208,0.00817782,85529.0,85512.0,0.05]
[1744641587426,0.011693,85517.0,85510.0,0.05]
[1744641587627,0.011693,85514.0,85501.0,0.05]
[1744641587828,0.011694,85508.0,85493.0,0.233934]
[1744641587996,0.011694,85508.0,85489.0,0.15768]
[1744641587997,0.011696,85497.0,85494.0,0.12084154]
[1744641588192,0.011695,85502.0,85487.0,0.05]
[1744641588435,0.011696,85495.0,85481.0,0.05]
[1744641588591,0.001,85519.0,85461.0,0.15968]
[1744641588592,0.011698,85478.0,85464.0,0.0617]
[1744641588805,0.34,85489.0,85461.0,0.013701]
[1744641588806,0.15768,85491.0,85479.0,0.011698]
[1744641589011,0.15768,85491.0,85465.0,0.12084154]
[1744641589012,0.34,85499.0,85480.0,0.12084154]
[1744641589207,0.233961,85485.0,85472.0,0.233992]
[1744641589475,0.011699,85476.0,85464.0,0.234016]
[1744641589630,0.011698,85480.0,85464.0,0.0117]
[1744641589831,0.38943241,85480.0,85464.0,0.0117]
[1744641590164,0.011693,85517.0,85494.0,0.011696]
[1744641590365,0.011771,85531.0,85513.0,0.05]
[1744641590581,0.245533,85528.0,85513.0,0.05]
[1744641590775,0.245534,85528.0,85514.0,0.233877]
[1744641590974,8e-05,85531.0,85519.0,0.233865]
[1744641591183,8e-05,85531.0,85518.0,0.011693]
[1744641591184,6.511e-05,85525.0,85518.0,0.011693]
[1744641591446,6.511e-05,85525.0,85515.0,0.011693]
[1744641591634,6.511e-05,85525.0,85516.0,0.12084154]
[1744641591848,6.511e-05,85525.0,85523.0,0.233854]
[1744641592044,6.511e-05,85525.0,85524.0,0.12084154]
[1744641592253,6.511e-05,85525.0,85524.0,0.17084154]
[1744641593926,0.01175711,85525.0,85517.0,0.05]
[1744641594127,6.511e-05,85525.0,85522.0,0.233856]
[1744641594364,6.511e-05,85525.0,85524.0,0.233852]
[1744641594687,6.511e-05,85525.0,85523.0,0.233852]
[1744641594899,6.511e-05,85525.0,85524.0,0.17084154]
[1744641595047,6.511e-05,85525.0,85524.0,0.17318009]
[1744641595371,6.511e-05,85525.0,85524.0,0.17084154]
[1744641596730,6.511e-05,85525.0,85524.0,0.17317982]
[1744641596928,6.511e-05,85525.0,85524.0,0.17517982]
[1744641597469,6.511e-05,85525.0,85524.0,0.17284154]
[1744641598090,6.511e-05,85525.0,85524.0,0.17084154]
[1744641598395,8e-05,85531.0,85530.0,0.283836]
[1744641598556,0.0005414,85531.0,85530.0,0.40467754]
[1744641600087,4e-07,85531.0,85530.0,0.56763754]
[1744641600895,4e-07,85531.0,85530.0,0.40667754]
[1744641601100,4e-07,85531.0,85530.0,0.40467754]
[1744641601885,4e-07,85531.0,85526.0,0.283846]
[1744641602085,4e-07,85531.0,85529.0,0.233836]
[1744641602286,4e-07,85531.0,85530.0,0.12084154]
[1744641602487,4e-07,85531.0,85530.0,0.1751797]
[1744641602891,4e-07,85531.0,85530.0,0.17084154]
[1744641603833,4e-07,85531.0,85526.0,0.233838]
[1744641604044,4e-07,85531.0,85523.0,0.233853]
[1744641604045,4e-07,85531.0,85529.0,0.05]
[1744641604253,4e-07,85531.0,85530.0,0.003]
[1744641604595,0.09586854,85531.0,85530.0,0.003]
[1744641604810,0.09586854,85531.0,85494.0,0.0477]
[1744641604811,0.245622,85497.0,85491.0,0.05]
[1744641605022,0.245622,85497.0,85463.0,1.09392]
[1744641605023,0.011696,85494.0,85472.0,0.233993]
[1744641605221,0.233944,85491.0,85469.0,0.0480414]
[1744641605429,0.02159278,85496.0,85488.0,0.233945]
[1744641605720,0.02159278,85496.0,85482.0,0.05]
[1744641605910,0.01077926,85495.0,85487.0,0.05]
[1744641606115,0.01077926,85495.0,85494.0,0.233934]
[1744641606317,0.01077926,85495.0,85494.0,0.40477554]
[1744641606605,0.01077926,85498.0,85497.0,0.283926]
[1744641606797,0.01077926,85498.0,85497.0,0.40476754]
[1744641607173,0.011696,85496.0,85489.0,0.0033024]
[1744641607381,0.011696,85498.0,85494.0,0.05]
[1744641607555,0.233929,85497.0,85494.0,0.05]
[1744641607757,0.011696,85496.0,85489.0,0.0513024]
[1744641607954,0.24562,85498.0,85492.0,0.05]
[1744641608156,0.24562,85498.0,85497.0,0.001]
[1744641608557,0.16096,85506.0,85497.0,0.012696]
[1744641608759,0.16096,85506.0,85502.0,0.233812]
[1744641608971,0.011693,85515.0,85497.0,0.012696]
[1744641608972,0.233813,85539.0,85519.0,0.233866]
[1744641609223,0.011692,85526.0,85511.0,0.011694]
[1744641609428,0.011693,85518.0,85505.0,0.05]
[1744641609648,0.011693,85515.0,85505.0,0.05]
[1744641609799,0.011694,85512.0,85505.0,0.05]
[1744641610004,0.233901,85506.0,85492.0,0.05]
[1744641610185,0.233901,85506.0,85475.0,0.233984]
[1744641610186,0.011695,85503.0,85499.0,0.000461]
[1744641610393,1.1103705,85532.0,85505.0,0.05]
[1744641610598,0.00858625,85532.0,85522.0,0.05]
[1744641610796,0.0001,85515.0,85514.0,0.05]
[1744641610997,0.0001,85515.0,85514.0,0.17084154]
[1744641611399,0.0001,85515.0,85514.0,0.40472054]
[1744641613382,0.0001,85515.0,85514.0,0.40772054]
[1744641613801,0.01565434,86842.0,85541.0,0.01169]
[1744641613802,0.38942141,85560.0,85541.0,0.01169]
[1744641614054,0.01169,85543.0,85536.0,0.05]
[1744641614245,0.011989,85547.0,85514.0,0.003]
[1744641614246,0.011691,85529.0,85524.0,0.05]
[1744641614443,0.245525,85531.0,85524.0,0.05]
[1744641614649,0.24551,85536.0,85526.0,0.05]
[1744641614850,0.01169,85536.0,85531.0,0.05]
[1744641615006,0.011691,85534.0,85525.0,0.05]
[1744641615192,0.011693,85517.0,85491.0,0.16096]
[1744641615396,0.011695,85500.0,85488.0,0.0494]
[1744641615597,0.011695,85502.0,85492.0,0.233938]
[1744641615818,0.011696,85495.0,85490.0,0.12084154]
[1744641615994,0.245628,85495.0,85489.0,0.0013024]
[1744641616198,0.011696,85495.0,85489.0,0.0013024]
[1744641616456,0.245633,85494.0,85489.0,0.0013024]
[1744641616665,0.011696,85497.0,85496.0,0.05]
[1744641616892,0.011696,85498.0,85496.0,0.05]
[1744641617056,0.011696,85498.0,85489.0,0.2352494]
[1744641617057,0.011696,85495.0,85489.0,0.0013024]
[1744641617244,0.245637,85492.0,85489.0,0.0053024]
[1744641617444,0.233943,85491.0,85489.0,0.0053024]
[1744641617656,0.24173028,85491.0,85489.0,0.0013024]
[1744641617846,0.03955076,85490.0,85489.0,0.0013024]
[1744641618057,0.12084154,85490.0,85489.0,0.0013024]
[1744641618254,0.34,85482.0,85481.0,2.08499598]
[1744641618455,0.34,85482.0,85481.0,2.02314953]
[1744641618456,0.65444293,85482.0,85481.0,2.02314953]
[1744641618656,0.65444293,85482.0,85481.0,2.02321464]
[1744641618858,0.234,85470.0,85469.0,0.0008414]
[1744641619060,0.234,85470.0,85469.0,4e-07]
[1744641619061,0.69484154,85470.0,85469.0,4e-07]
[1744641619262,0.69484154,85470.0,85454.0,0.0008414]
[1744641619263,0.574022,85462.0,85454.0,0.0008414]
[1744641619462,0.234085,85439.0,85428.0,0.0008418]
[1744641619641,0.011701,85457.0,85448.0,0.05]
[1744641619840,0.234085,85439.0,85428.0,0.0008418]
[1744641620241,0.77671429,85439.0,85428.0,0.0008418]
[1744641620451,0.73548293,85439.0,85428.0,0.0008418]
[1744641620704,0.74440958,85439.0,85428.0,0.0008418]
[1744641620873,0.60671545,85439.0,85428.0,0.0008418]
[1744641621275,0.73829693,85439.0,85428.0,0.0008418]
[1744641621844,0.75083778,85439.0,85438.0,8e-07]
[1744641622051,0.87156626,85439.0,85438.0,8e-07]
[1744641622291,0.87156626,85439.0,85428.0,6e-07]
[1744641622292,0.34,85429.0,85428.0,6e-07]
[1744641622657,0.574167,85409.0,85408.0,0.0008422]
[1744641622868,0.574181,85404.0,85383.0,0.011711]
[1744641623045,0.36673154,85404.0,85401.0,0.0019996]
[1744641623241,0.234186,85402.0,85401.0,0.0019996]
[1744641623445,0.35502754,85402.0,85401.0,0.0019996]
[1744641623790,0.36590235,85402.0,85401.0,0.0019996]
[1744641624606,0.35502754,85402.0,85401.0,0.0019996]
[1744641625192,0.00246059,85402.0,85395.0,0.01171]
[1744641625387,0.23664659,85402.0,85396.0,0.0458]
[1744641625593,0.011709,85401.0,85396.0,0.0458]
[1744641625804,0.00246059,85402.0,85397.0,0.03090729]
[1744641625939,0.00246059,85402.0,85401.0,0.03090729]
[1744641626144,0.00246059,85402.0,85401.0,0.38593783]
[1744641626348,0.00046059,85402.0,85401.0,0.38593783]
[1744641626591,2.93089867,85480.0,85401.0,0.38593783]
[1744641626592,0.245774,85445.0,85427.0,0.011705]
[1744641626899,0.2341,85434.0,85432.0,0.03090729]
[1744641627251,0.2341,85434.0,85430.0,0.03090729]
[1744641627252,0.234107,85431.0,85430.0,0.03090729]
[1744641627473,0.011705,85429.0,85426.0,0.03090729]
[1744641627679,0.011705,85429.0,85428.0,0.03090729]
[1744641628456,0.234134,85421.0,85420.0,0.00013921]
[1744641628857,0.749695,85421.0,85420.0,0.00013921]
[1744641629673,0.75859524,85421.0,85420.0,0.00013921]
[1744641629883,0.234227,85387.0,85380.0,0.0465]
[1744641630162,0.234268,85372.0,85365.0,0.0465]
[1744641630317,0.234267,85373.0,85365.0,0.0465]
[1744641630515,0.234267,85373.0,85368.0,0.03090729]
[1744641630740,0.234267,85373.0,85357.0,0.0008426]
[1744641630917,0.234267,85373.0,85369.0,0.03090729]
[1744641631120,0.011711,85385.0,85382.0,0.03090729]
[1744641631344,0.234249,85379.0,85378.0,0.03090729]
[1744641631757,0.000138,85381.0,85380.0,0.03090729]
[1744641632511,0.000138,85381.0,85380.0,0.20034883]
[1744641633571,0.000138,85381.0,85380.0,0.25149112]
[1744641633735,0.000138,85381.0,85380.0,0.24914883]
[1744641634133,0.011708,85410.0,85406.0,0.03090729]
[1744641634367,0.0001,85430.0,85416.0,0.011707]
[1744641634573,0.011706,85424.0,85420.0,0.03090729]
[1744641634772,0.234133,85422.0,85420.0,0.03090729]
[1744641634998,0.011707,85417.0,85414.0,0.0453]
[1744641635205,0.234148,85416.0,85414.0,0.0453]
[1744641636301,0.234183,85403.0,85402.0,0.03090729]
[1744641636908,0.245891,85405.0,85404.0,0.03090729]
[1744641637922,0.011706,85426.0,85416.0,0.03090729]
[1744641638107,0.0001,85430.0,85423.0,0.234128]
[1744641638254,0.011805,85430.0,85423.0,0.03090729]
[1744641638596,0.011705,85429.0,85423.0,0.03090729]
[1744641638797,0.23426646,85424.0,85423.0,0.03090729]
[1744641639157,0.234145,85417.0,85415.0,0.0466]
[1744641639396,0.234145,85417.0,85416.0,0.03090729]
[1744641639652,0.00013846,85424.0,85417.0,0.03090729]
[1744641639653,0.24597146,85424.0,85417.0,0.03090729]
[1744641639838,0.24597146,85424.0,85423.0,0.03090729]
[1744641640118,0.234159,85412.0,85411.0,0.03090729]
[1744641640297,0.011707,85414.0,85413.0,0.03090729]
[1744641640612,0.011707,85414.0,85412.0,0.03090729]
[1744641640760,0.234164,85410.0,85409.0,0.03090729]
[1744641640957,0.011707,85414.0,85410.0,0.03090729]
[1744641641157,0.234156,85413.0,85412.0,0.03090729]
[1744641641418,0.234155,85414.0,85412.0,0.03090729]
[1744641641623,0.245859,85415.0,85414.0,0.03090729]
[1744641641794,0.011707,85417.0,85416.0,0.03090729]
[1744641642179,0.234143,85418.0,85416.0,0.03090729]
[1744641642578,0.245846,85419.0,85417.0,0.03090729]
[1744641642761,0.234153,85414.0,85412.0,0.03090729]
[1744641642970,0.234185,85403.0,85402.0,0.03090729]
[1744641643359,0.234185,85403.0,85401.0,0.07760729]
[1744641643534,0.234185,85403.0,85401.0,0.0467]
[1744641644449,0.234239,85383.0,85381.0,0.1628]
[1744641644654,0.011711,85386.0,85381.0,0.28364154]
[1744641644856,0.245941,85386.0,85383.0,0.047]
[1744641645057,0.234235,85385.0,85383.0,0.047]
[1744641645802,0.234235,85385.0,85383.0,0.04746059]
[1744641646142,0.02170318,85384.0,85383.0,0.04746059]
[1744641646349,0.02170318,85384.0,85383.0,0.00046059]
[1744641646546,0.14254472,85384.0,85383.0,0.00046059]
[1744641646747,0.53726418,85384.0,85383.0,0.00046059]
[1744641646973,0.234238,85383.0,85381.0,5.9e-07]
[1744641647172,0.234238,85383.0,85358.0,0.0468]
[1744641647173,0.234268,85372.0,85358.0,0.0468]
[1744641647614,0.234268,85372.0,85362.0,0.03090729]
[1744641647819,0.234268,85372.0,85363.0,0.03090729]
[1744641648025,0.234268,85372.0,85358.0,0.0468]
[1744641648440,0.237268,85372.0,85363.0,0.03090729]
[1744641649014,0.237268,85372.0,85358.0,0.0468]
[1744641649220,0.35810954,85372.0,85358.0,0.0468]
[1744641649568,0.35810954,85372.0,85351.0,0.00433]
[1744641650181,0.40381564,85372.0,85351.0,0.00433]
[1744641650483,0.35810954,85372.0,85351.0,0.00433]
[1744641650696,0.234307,85358.0,85351.0,0.00433]
[1744641651029,0.35514854,85358.0,85351.0,0.00433]
[1744641651703,0.34,85352.0,85351.0,8e-07]
[1744641651972,0.34,85352.0,85349.0,0.0008426]
[1744641651973,0.34,85350.0,85349.0,0.0008426]
[1744641652116,0.49344347,85350.0,85349.0,0.0008426]
[1744641652524,0.03260193,85350.0,85349.0,0.0008426]
[1744641652723,0.234327,85351.0,85349.0,0.0008426]
[1744641653783,0.36392438,85351.0,85349.0,0.0008426]
[1744641653923,0.12084154,85350.0,85349.0,0.0008426]
[1744641654344,0.15347324,85350.0,85349.0,0.0008426]
[1744641654752,0.12084154,85350.0,85349.0,0.0008426]
[1744641655324,0.12284154,85350.0,85349.0,0.0008426]
[1744641655515,0.857561,85350.0,85349.0,0.0008426]
[1744641655728,0.002,85350.0,85349.0,0.0008426]
[1744641655884,0.35727054,85350.0,85349.0,0.0008426]
[1744641656093,1.09199,85350.0,85349.0,0.0008426]
[1744641656295,1.21271848,85350.0,85349.0,0.0008426]
[1744641656518,1.21071848,85350.0,85349.0,0.0008426]
[1744641656680,0.62914846,85350.0,85349.0,0.0008426]
[1744641656885,0.63214846,85350.0,85349.0,0.0008426]
[1744641657336,0.62914846,85350.0,85349.0,0.0008426]
[1744641657753,0.63214846,85350.0,85349.0,0.0008426]
[1744641657960,0.71991836,85350.0,85349.0,0.0008426]
[1744641658265,0.62914846,85350.0,85349.0,0.0008426]
[1744641658420,0.63114846,85350.0,85349.0,0.0008426]
[1744641659472,0.39681946,85350.0,85349.0,0.0502426]
[1744641659816,0.39681946,85350.0,85349.0,0.0008426]
[1744641660018,0.55530236,85350.0,85349.0,0.0008426]
[1744641660269,0.857661,85350.0,85349.0,0.0008426]
[1744641660640,0.39681946,85350.0,85349.0,0.0008426]
[1744641661237,0.39681946,85350.0,85349.0,0.12924989]
[1744641661436,0.0001,85350.0,85349.0,0.12924989]
[1744641661634,0.0001,85350.0,85349.0,0.25009143]
[1744641661835,0.0011,85350.0,85349.0,0.25009143]
[1744641662080,0.01171,85397.0,85379.0,0.03090729]
[1744641662328,0.011709,85399.0,85379.0,0.47919783]
[1744641662475,0.01171,85395.0,85379.0,0.47919783]
[1744641662689,0.00876563,85398.0,85379.0,0.47919783]
[1744641662893,0.011709,85398.0,85379.0,0.47919783]
[1744641663075,0.01171,85395.0,85379.0,0.47919783]
[1744641663482,0.011709,85398.0,85396.0,0.03090729]
[1744641663483,0.01171,85397.0,85396.0,0.03090729]
[1744641663662,0.011709,85401.0,85396.0,0.03090729]
[1744641663877,0.011709,85402.0,85397.0,0.01171]
[1744641664108,0.011809,85400.0,85396.0,0.01171]
[1744641664311,0.234199,85398.0,85396.0,0.03090729]
[1744641664509,0.2342,85397.0,85396.0,0.03090729]
[1744641664714,0.2362,85397.0,85396.0,0.03090729]
[1744641665111,0.2342,85397.0,85396.0,0.03090729]
[1744641665695,0.013709,85398.0,85396.0,0.03090729]
[1744641665892,0.247907,85398.0,85396.0,0.03090729]
[1744641666306,0.002,85398.0,85396.0,0.03090729]
[1744641666712,0.2342,85397.0,85396.0,0.03090729]
[1744641666960,0.234219,85390.0,85389.0,0.03090729]
[1744641667165,0.34875352,85409.0,85398.0,0.234195]
[1744641667427,0.0001,85430.0,85399.0,0.15174883]
[1744641667727,0.00846298,85416.0,85399.0,0.25009045]
[1744641668026,0.0088795,85428.0,85399.0,0.25009045]
[1744641668027,0.0001,85430.0,85418.0,0.234142]
[1744641668225,0.0001,85430.0,85418.0,0.38589083]
[1744641668433,0.00055986,85419.0,85418.0,0.38589083]
[1744641668786,0.0001,85430.0,85418.0,0.38589083]
[1744641668787,0.0001,85430.0,85428.0,0.26502229]
[1744641668987,0.0001,85430.0,85428.0,0.38586383]
[1744641669187,0.0001,85430.0,85428.0,0.15174883]
[1744641669505,0.0001,85430.0,85428.0,0.38586383]
[1744641669968,0.0001,85430.0,85428.0,0.43286383]
[1744641670701,0.05437571,85446.0,85445.0,0.26497529]
[1744641670902,0.05483707,85446.0,85445.0,0.03090729]
[1744641671405,0.00046136,85446.0,85445.0,0.38581683]
[1744641671794,0.00246136,85446.0,85445.0,0.48181683]
[1744641672062,0.0004216,85470.0,85449.0,0.26496429]
[1744641672206,0.00023832,85450.0,85449.0,0.54368583]
[1744641672828,0.00023832,85450.0,85449.0,0.15174883]
[1744641673003,0.00023832,85450.0,85449.0,0.12084154]
[1744641673213,0.234065,85446.0,85445.0,0.12690729]
[1744641673421,0.011703,85448.0,85447.0,0.03090729]
[1744641673646,0.234057,85449.0,85448.0,0.03090729]
[1744641674196,0.234064,85447.0,85446.0,0.03090729]
[1744641674961,0.01194032,85450.0,85449.0,0.03090729]
[1744641675164,0.00023832,85450.0,85449.0,0.54364583]
[1744641675747,0.00023832,85450.0,85449.0,0.30958883]
[1744641676735,9e-07,85464.0,85463.0,0.31382629]
[1744641676908,5e-07,85470.0,85469.0,0.26490929]
[1744641677152,5e-07,85470.0,85469.0,0.54359083]
[1744641677898,0.0001,85480.0,85479.0,0.26488229]
[1744641678107,0.0002383,85480.0,85479.0,0.38572383]
[1744641679046,0.0002383,85480.0,85479.0,0.48152383]
[1744641679470,0.0002383,85480.0,85479.0,0.48252383]
[1744641679652,0.0002383,85480.0,85479.0,0.45161654]
[1744641679971,0.0002383,85480.0,85479.0,0.48252383]
[1744641680315,0.0002383,85480.0,85479.0,0.24854883]
[1744641680516,0.0002383,85480.0,85479.0,0.21764154]
[1744641680662,0.0002383,85480.0,85479.0,0.24754883]
[1744641680872,0.0002383,85480.0,85479.0,0.12670729]
[1744641681078,0.0002383,85480.0,85479.0,0.12770729]
[1744641681412,0.0002383,85480.0,85479.0,0.48252383]
[1744641681835,0.0002383,85480.0,85479.0,0.48152383]
[1744641682071,0.0002383,85480.0,85479.0,0.24754883]
[1744641682278,0.0002383,85480.0,85479.0,0.0469]
[1744641682442,0.0117,85469.0,85466.0,0.0117]
[1744641682649,0.011699,85472.0,85468.0,0.234004]
[1744641682848,0.245701,85470.0,85469.0,0.03090729]
[1744641683051,0.245701,85470.0,85468.0,0.12084154]
[1744641683052,0.011699,85475.0,85468.0,0.0117]
[1744641683371,0.011699,85477.0,85476.0,0.03090729]
[1744641684748,0.011699,85477.0,85465.0,0.0459]
[1744641684749,0.0117,85468.0,85465.0,0.0459]
[1744641684944,0.234011,85466.0,85465.0,0.07680729]
[1744641685140,0.234008,85467.0,85466.0,0.03090729]
[1744641685371,0.0117,85468.0,85467.0,0.03090729]
[1744641685572,0.245706,85468.0,85467.0,0.03090729]
[1744641687546,0.011698,85478.0,85473.0,0.03090729]
[1744641687784,0.233989,85474.0,85473.0,0.03090729]
[1744641687982,0.233989,85474.0,85473.0,0.03080729]
[1744641688394,0.233986,85475.0,85473.0,0.03080729]
[1744641688595,0.011699,85476.0,85467.0,0.03080729]
[1744641688596,0.245705,85468.0,85467.0,0.03080729]
[1744641688907,0.234011,85466.0,85465.0,0.07670729]
[1744641689310,0.234011,85466.0,85463.0,0.03080729]
[1744641689311,0.234016,85464.0,85463.0,0.03080729]
[1744641689949,0.245708,85469.0,85453.0,0.059802]
[1744641689950,0.0002383,85480.0,85472.0,0.011699]
[1744641690156,0.0002383,85480.0,85479.0,0.26468229]
[1744641690510,0.2342103,85480.0,85479.0,0.03070729]
[1744641690850,0.245674,85479.0,85478.0,0.03070729]
[1744641691054,0.2342103,85480.0,85479.0,0.03070729]
[1744641691455,0.0002383,85480.0,85479.0,0.03070729]
[1744641691657,0.0002383,85480.0,85479.0,0.24674883]
[1744641691811,0.0003383,85480.0,85479.0,0.24674883]
[1744641692363,0.0003383,85480.0,85479.0,0.0468]
[1744641692579,0.245704,85469.0,85468.0,0.0468]
[1744641694214,0.245704,85469.0,85468.0,0.07750729]
[1744641694626,0.245704,85469.0,85468.0,0.0468]
[1744641694825,0.0117,85464.0,85463.0,0.03070729]
[1744641695185,0.245716,85464.0,85463.0,0.03070729]
[1744641695399,0.0003383,85480.0,85479.0,0.233975]
[1744641695600,0.0003383,85480.0,85479.0,0.26468229]
[1744641696006,0.0003383,85480.0,85479.0,0.03070729]
[1744641696208,0.0003383,85480.0,85455.0,0.374462]
[1744641696209,0.233975,85479.0,85478.0,0.03070729]
[1744641696394,0.24568,85477.0,85476.0,0.03070729]
[1744641696590,0.233981,85477.0,85476.0,0.03070729]
[1744641696794,0.245673,85479.0,85478.0,0.03070729]
[1744641697426,0.0003383,85480.0,85479.0,0.03070729]
[1744641697625,0.2343103,85480.0,85479.0,0.03070729]
[1744641698541,0.2457,85470.0,85469.0,0.03070729]
[1744641699069,0.0117,85470.0,85469.0,0.03070729]
[1744641699474,0.234003,85469.0,85467.0,0.03070729]
[1744641699685,0.234005,85468.0,85467.0,0.03070729]
[1744641699879,7e-07,85484.0,85483.0,0.233964]
[1744641700078,0.0001,85490.0,85489.0,0.30965529]
[1744641700079,7e-07,85490.0,85489.0,0.30965529]
[1744641700304,7e-07,85490.0,85489.0,0.58697683]
[1744641700846,0.0001,85500.0,85499.0,0.26462729]
[1744641701053,0.0001,85500.0,85499.0,0.38546883]
[1744641702108,3e-07,85506.0,85505.0,0.03070729]
[1744641702264,1e-06,85519.0,85518.0,0.26457529]
[1744641702480,1e-06,85519.0,85518.0,0.54185683]
[1744641702673,0.0001393,85519.0,85518.0,0.54185683]
[1744641703132,0.0001393,85519.0,85518.0,0.63865683]
[1744641703282,0.0003,85547.0,85529.0,0.26454529]
[1744641703486,0.0003,85547.0,85529.0,0.38538683]
[1744641704095,0.0003,85547.0,85529.0,0.59072683]
[1744641704520,0.234091,85547.0,85529.0,0.59072683]
[1744641704793,0.0002,85530.0,85529.0,0.59072683]
[1744641705184,0.0002,85530.0,85529.0,0.59272683]
[1744641705937,0.0002,85530.0,85529.0,0.0509]
[1744641706755,0.0002,85530.0,85529.0,0.20244883]
[1744641707160,0.0002,85530.0,85529.0,0.20478698]
[1744641707373,0.0002,85530.0,85529.0,0.20278698]
[1744641707590,0.0001,85550.0,85544.0,0.26450429]
[1744641707794,0.00096081,85545.0,85544.0,0.38534583]
[1744641708238,0.00096081,85545.0,85544.0,0.03070729]
[1744641708559,0.01169,85539.0,85535.0,0.27622029]
[1744641708677,0.01169,85539.0,85538.0,0.03070729]
[1744641708885,0.01851175,85539.0,85538.0,0.03070729]
[1744641709080,0.00682175,85539.0,85538.0,0.15154883]
[1744641709288,0.00196081,85545.0,85544.0,0.03070729]
[1744641709511,0.0088243,85545.0,85544.0,0.03070729]
[1744641711087,0.01169,85536.0,85535.0,0.03070729]
[1744641711285,0.01169,85536.0,85534.0,0.1564]
[1744641711675,0.00679391,85535.0,85534.0,0.1564]
[1744641712269,0.011691,85533.0,85532.0,0.1564]
[1744641712473,0.252301,85533.0,85532.0,0.18710729]
[1744641712891,0.00678,85533.0,85532.0,0.18710729]
[1744641713295,0.00678,85533.0,85532.0,0.54177883]
[1744641713495,0.00096081,85545.0,85544.0,0.26450429]
[1744641713723,0.00096081,85545.0,85544.0,0.03070729]
[1744641713951,0.00096081,85545.0,85536.0,0.01169]
[1744641713952,0.233827,85533.0,85530.0,0.0492]
[1744641714250,0.245515,85535.0,85534.0,0.03070729]
[1744641714656,0.245508,85537.0,85536.0,0.03070729]
[1744641714881,0.00096081,85545.0,85544.0,0.03070729]
[1744641715005,0.00096081,85545.0,85544.0,0.26450429]
[1744641715214,0.233808,85540.0,85539.0,0.03070729]
[1744641715441,0.00096081,85545.0,85544.0,0.03070729]
[1744641715654,0.23475581,85545.0,85544.0,0.03070729]
[1744641715827,0.00096081,85545.0,85544.0,0.03070729]
[1744641716160,0.00096081,85545.0,85544.0,0.26450429]
[1744641716582,0.23475581,85545.0,85544.0,0.03070729]
[1744641716878,0.00096081,85545.0,85544.0,0.15154883]
[1744641717164,0.0001,85550.0,85549.0,0.26449129]
[1744641717339,0.0001,85550.0,85549.0,0.54169283]
[1744641717538,0.00023816,85550.0,85547.0,0.03070729]
[1744641717743,0.233786,85548.0,85546.0,0.03070729]
[1744641718070,0.233808,85540.0,85539.0,0.03070729]
[1744641718407,0.233808,85540.0,85531.0,0.0494]
[1744641718408,0.233806,85541.0,85540.0,0.03070729]